fUSD/lending_fUSD_20241125
["ID","MTS","AMOUNT","RATE_DAILY","PERIOD"]
[343309655,1732559434026,-540.28820219,0.0004,120]
[343309656,1732559434036,-2000.0,0.0004,60]
[343309657,1732559434046,-300.0,0.0004,3]
[343309658,1732559434056,-200.0,0.0004,3]
[343309659,1732559434066,-200.0,0.0004,3]
[343309660,1732559434075,-300.0,0.0004,3]
[343309661,1732559434085,-300.0,0.0004,3]
[343309662,1732559434095,-275.82615206,0.0004,2]
[343309663,1732559434115,-319.17384794,0.0004,2]
[343309664,1732559434124,-517.30068851,0.0004,2]
[343309665,1732559434151,-74.69931149,0.0004,2]
[343309666,1732559434162,-592.0,0.0004,2]
[343309667,1732559434171,-592.0,0.0004,2]
[343309668,1732559434181,-1000.0,0.0004,10]
[343309669,1732559434191,-1000.0,0.0004,10]
[343309670,1732559434202,-1000.0,0.0004,10]
[343309671,1732559434211,-1000.0,0.0004,10]
[343309672,1732559434221,-911.0,0.0004,10]
[343309673,1732559434231,-1000.0,0.0004,12]
[343309674,1732559434240,-1000.0,0.0004,3]
[343309675,1732559434250,-1000.0,0.0004,3]
[343309676,1732559434260,-1000.0,0.0004,13]
[343309677,1732559434269,-1000.0,0.0004,13]
[343309678,1732559434279,-1000.0,0.0004,13]
[343309679,1732559434290,-1000.0,0.0004,13]
[343309680,1732559434300,-629.0,0.0004,12]
[343309681,1732559434309,-1000.0,0.0004,10]
[343309682,1732559434319,-1000.0,0.0004,10]
[343309683,1732559434328,-1000.0,0.0004,3]
[343309684,1732559434339,-1000.0,0.0004,3]
[343309685,1732559434349,-4132.41796792,0.0004,3]
[343309686,1732559434376,-1379.71706062,0.0004,3]
[343309687,1732559434388,-12444.27896942,0.0004,3]
[343309691,1732559438273,-1530.034537,0.00024089,2]
[343309692,1732559438283,-85025.29750506,0.0004,3]
[343309693,1732559438297,-1477.47,0.0004,3]
[343309694,1732559438406,-1592.5,0.0004,3]
[343309695,1732559438418,-9763.4,0.0004,3]
[343309696,1732559438430,-5836.81553204,0.0004,3]
[343309697,1732559438439,-7974.07240902,0.0004,30]
[343309698,1732559438453,-647.56759098,0.0004,30]
[343309699,1732559438462,-893.05394861,0.0004,30]
[343309700,1732559438474,-2165.12285441,0.0004,30]
[343309701,1732559438485,-1930.96616508,0.0004,30]
[343309718,1732559440350,-3795.11862121,0.0004,30]
[343309719,1732559440569,-435.12718481,0.0004,30]
[343309720,1732559440624,-16903.01429798,0.0004,30]
[343309721,1732559440633,-151.0,0.0004,14]
[343309722,1732559440642,-151.0,0.0004,14]
[343309723,1732559440652,-151.0,0.0004,14]
[343309724,1732559440662,-151.0,0.0004,14]
[343309725,1732559440671,-1788.28,0.0004,2]
[343309726,1732559440681,-151.0,0.0004,14]
[343309727,1732559440690,-1600.0,0.0004,2]
[343309728,1732559440701,-538.658075,0.0004,14]
[343309730,1732559440710,-538.658075,0.0004,14]
[343309731,1732559440719,-151.0,0.0004,14]
[343309732,1732559440730,-151.0,0.0004,14]
[343309733,1732559440739,-151.0,0.0004,14]
[343309734,1732559440749,-151.0,0.0004,14]
[343309735,1732559440758,-151.0,0.0004,14]
[343309736,1732559440769,-151.0,0.0004,14]
[343309737,1732559440779,-151.0,0.0004,14]
[343309738,1732559440788,-151.403045,0.0004,14]
[343309739,1732559440797,-207.720457,0.0004,14]
[343309740,1732559440806,-151.0,0.0004,14]
[343309741,1732559440816,-151.0,0.0004,14]
[343309742,1732559440826,-151.0,0.0004,14]
[343309743,1732559440835,-151.0,0.0004,14]
[343309744,1732559440846,-11969.18297255,0.0004,15]
[343309748,1732559443464,-1962.57355597,0.0004,15]
[343309749,1732559443646,-12685.99338144,0.0004,15]
[343309750,1732559443677,-1659.65716604,0.0004,15]
[343309752,1732559443795,-120790.000035,0.0004,15]
[343309758,1732559446330,-500.0,0.00039227,2]
[343309759,1732559446340,-34230.82600005,0.0004,15]
[343309760,1732559446351,-506.67,0.0004,15]
[343309761,1732559446386,-1014.79749229,0.0004,15]
[343309762,1732559446552,-6277.79313625,0.0004,15]
[343309763,1732559446563,-9043.14428586,0.0004,15]
[343309764,1732559446574,-9708.26265993,0.0004,15]
[343309818,1732560631659,-179.75,0.00030685,2]
[343309819,1732560631668,-250.0,0.00031,2]
[343309820,1732560631678,-300.0,0.00033,2]
[343309821,1732560631687,-150.0,0.00034548,10]
[343309822,1732560631697,-350.0,0.00035,2]
[343309823,1732560631706,-179.75,0.0003628,2]
[343309824,1732560631715,-1636.86,0.0003631,2]
[343309825,1732560631724,-150.0,0.00036789,2]
[343309826,1732560631734,-400.0,0.00037,2]
[343309827,1732560631743,-150.0,0.00037863,2]
[343309828,1732560631753,-400.0,0.00037899,2]
[343309829,1732560631762,-5407.6573793,0.000379,120]
[343309830,1732560631774,-5440.8389306,0.000379,120]
[343309831,1732560631784,-250.0,0.00038069,120]
[343309832,1732560631793,-1000.0,0.00038073,2]
[343309833,1732560631802,-659.88,0.00038075,2]
[343309834,1732560631812,-153.19,0.00038102,2]
[343309835,1732560631821,-500.0,0.00038111,2]
[343309836,1732560631831,-236.23,0.00038127,2]
[343309837,1732560631840,-250.0,0.00038145,2]
[343309838,1732560631850,-168.46,0.00038171,2]
[343309839,1732560631859,-250.0,0.00038171,2]
[343309840,1732560631868,-1000.0,0.00038182,120]
[343309841,1732560631878,-212.31,0.00038204,120]
[343309842,1732560631887,-23900.0,0.0003822,2]
[343309843,1732560631896,-268.31,0.00038353,120]
[343309844,1732560631908,-1636.86,0.00038574,2]
[343309845,1732560631917,-29999.99,0.00038678,30]
[343309846,1732560631926,-450.0,0.00039,2]
[343309847,1732560631935,-1071.42109578,0.00039,2]
[343309848,1732560631944,-150.0,0.00039078,2]
[343309849,1732560631953,-725.72,0.00039081,2]
[343309850,1732560631963,-150.0,0.00039178,2]
[343309851,1732560631971,-150.0,0.00039178,2]
[343309852,1732560631981,-162.95,0.00039281,2]
[343309853,1732560631991,-300.0,0.000395,14]
[343309854,1732560632000,-150.0,0.00039596,2]
[343309856,1732560632010,-600.0,0.000396,14]
[343309858,1732560632019,-150.0,0.00039644,2]
[343309860,1732560632028,-1000.0,0.000397,14]
[343309862,1732560632037,-150.0,0.00039732,2]
[343309864,1732560632046,-150.0,0.00039777,2]
[343309866,1732560632056,-150.0,0.00039794,2]
[343309867,1732560632066,-588.11602867,0.000398,2]
[343309869,1732560632076,-2021.0115,0.000398,2]
[343309871,1732560632085,-495.04,0.000398,2]
[343309873,1732560632095,-1300.0,0.000398,14]
[343309875,1732560632104,-604.29174557,0.000398,2]
[343309877,1732560632113,-150.0,0.00039804,2]
[343309878,1732560632122,-150.0,0.00039838,2]
[343309879,1732560632131,-165.4549869,0.00039873,5]
[343309880,1732560632140,-588.11602867,0.00039874,15]
[343309881,1732560632150,-604.29174555,0.00039874,2]
[343309882,1732560632167,-150.0,0.00039882,2]
[343309883,1732560632177,-150.0,0.00039893,2]
[343309884,1732560632187,-180.63197209,0.00039899,31]
[343309885,1732560632197,-363.18,0.000399,2]
[343309886,1732560632208,-150.0,0.000399,2]
[343309887,1732560632217,-100000.0,0.000399,2]
[343309888,1732560632227,-1000.0,0.000399,2]
[343309889,1732560632237,-12370.37261356,0.000399,2]
[343309890,1732560632321,-1558.41452012,0.000399,2]
[343309891,1732560632332,-410.68199384,0.000399,2]
[343309898,1732560637741,-2114.79473722,0.000399,2]
[343309899,1732560637753,-262.89720906,0.000399,2]
[343309900,1732560637936,-107079.09051338,0.000399,2]
[343309938,1732560639557,-3934.81031941,0.000399,2]
[343309939,1732560639569,-1802.55499993,0.000399,2]
[343309940,1732560639714,-271.06089257,0.000399,2]
[343309941,1732560639726,-35723.5666221,0.000399,2]
[343309942,1732560639824,-130435.48080813,0.000399,2]
[343309943,1732560639836,-88707.63578676,0.000399,2]
[343309948,1732560642622,-304.03093487,0.000399,2]
[343309949,1732560642633,-195273.34467604,0.000399,2]
[343309950,1732560642707,-918.41256554,0.000399,2]
[343309951,1732560642719,-5409.96792119,0.000399,2]
[343309952,1732560642731,-2032.60545923,0.000399,2]
[343309953,1732560642743,-2818.80240662,0.000399,2]
[343309973,1732560645771,-34545.71499985,0.000399,2]
[343309974,1732560645786,-341.1804205,0.000399,2]
[343309975,1732560645858,-861.46656999,0.000399,2]
[343309978,1732561437335,-226.97,0.00030685,2]
[343309979,1732561437357,-4177.26529209,0.00030892,2]
[343309980,1732561437380,-168.43,0.00030992,2]
[343309981,1732561437404,-27.33470791,0.00031,2]
[343309995,1732561831875,-952.3,0.00025,2]
[343309996,1732561832073,-133.7,0.00025,2]
[343309997,1732561832083,-253.945,0.000299,2]
[343309998,1732561832094,-10528.89756968,0.000299,2]
[343309999,1732561832102,-586.33491577,0.000299,2]
[343310000,1732561832116,-4121.85658577,0.000299,2]
[343310001,1732561832126,-22373.97335732,0.000299,2]
[343310002,1732561832135,-1659.71921474,0.000299,2]
[343310003,1732561832144,-45080.66167518,0.000299,2]
[343310004,1732561832153,-157.26063867,0.00029967,2]
[343310005,1732561832163,-319.2301735,0.00029967,2]
[343310006,1732561832172,-150.0,0.00029973,2]
[343310007,1732561832182,-150.0,0.00029999,2]
[343310008,1732561832191,-10818.53050619,0.0003,5]
[343310009,1732561832203,-93534.75961927,0.0003,5]
[343310012,1732561837773,-2762.19760739,0.0003,5]
[343310013,1732561837870,-952.54248781,0.0003,5]
[343310014,1732561838202,-486.58572526,0.0003,5]
[343310078,1732561839835,-597.5579386,0.0003,5]
[343310079,1732561839847,-744.57,0.0003,5]
[343310080,1732561839859,-1734301.46663407,0.0003,5]
[343310081,1732561839951,-952.98,0.0003,5]
[343310082,1732561840108,-97.11696049,0.0003,5]
[343310083,1732561840141,-366.3750025,0.0003,5]
[343310092,1732561844413,-231.52,0.0002999,2]
[343310093,1732561844423,-231.52,0.0002999,2]
[343310094,1732561844432,-231.52,0.0002999,2]
[343310095,1732561844442,-5373.79002105,0.0003,5]
[343310096,1732561844454,-480.34,0.0003,5]
[343310097,1732561844465,-2852.450444,0.0003,5]
[343310098,1732561844476,-11428.52867842,0.0003,5]
[343310099,1732561844614,-4756.50216,0.0003,5]
[343310100,1732561844631,-55460.54471091,0.0003,5]
[343310101,1732561844643,-12228.0,0.0003,5]
[343310102,1732561844654,-5112.41363368,0.0003,5]
[343310103,1732561844665,-14397.07399602,0.0003,5]
[343310114,1732561845595,-17185.30500012,0.0003,5]
[343310115,1732561845608,-9528.64999999,0.0003,5]
[343310117,1732561845991,-261.7024995,0.0003,5]
[343310118,1732561846002,-1636.18657229,0.0003,5]
[343310119,1732561846013,-283.11259434,0.0003,5]
[343310120,1732561846024,-1578.0429203,0.0003,5]
[343310121,1732561853852,-1228841.5193707,0.0003,5]
[343310122,1732562709056,1779644.89569159,0.00013,2]
[343310123,1732562709473,12948.45243529,0.0001,2]
[343310124,1732562711366,12434.7434897,0.000154,2]
[343310159,1732562755284,323.58661529,6.94e-05,2]
[343310173,1732562762912,22531.30160882,9.8e-05,2]
[343310174,1732562767360,1096.76575229,0.0001,2]
[343310177,1732562787183,228.59,0.00029407,120]
[343310193,1732562827295,1517.64,0.000153,2]
[343310194,1732562837256,205.0,9.8e-05,2]
[343310197,1732562841042,1512.13462442,0.0001305,2]
[343310199,1732562841452,247.54238249,0.000101,2]
[343310202,1732562860480,4491.0259096,9e-05,2]
[343310203,1732562874304,525.91808125,0.00013,2]
[343310204,1732562878303,11578.61761954,0.0001,2]
[343310205,1732562879530,1690.39401083,0.000181,2]
[343310206,1732562881480,407038.54321369,0.00013,2]
[343310207,1732562891065,24210.78145981,0.0002,2]
[343310208,1732562896623,9812.35091864,0.0001439,2]
[343310209,1732562896785,1233.53605946,0.0002,2]
[343310210,1732562898219,200.0,0.0001634,2]
[343310211,1732562899828,1000.0,0.000135,2]
[343310212,1732562899993,292.9724716,0.000125,2]
[343310213,1732562905566,187.46,0.00016712,2]
[343310214,1732562908867,1220.7539798,0.00015235,2]
[343310217,1732562913714,1130.07728436,0.00018,2]
[343310248,1732563031909,-689.53685026,0.000217,2]
[343310251,1732563031975,-952.78,0.000217,2]
[343310252,1732563031986,-1695.37338326,0.000217,2]
[343310253,1732563032037,-1467.93,0.000217,2]
[343310254,1732563036316,-2409.20622206,0.000217,2]
[343310255,1732563036326,-300.0,0.00021999,2]
[343310256,1732563036336,-244.72213596,0.00022,2]
[343310257,1732563036345,-17278.48933323,0.00022,2]
[343310258,1732563036355,-14786.4011607,0.000225,2]
[343310259,1732563036364,-1800.17657725,0.0002361,7]
[343310260,1732563036373,-420.0,0.00023906,2]
[343310261,1732563036382,-188.01,0.00023912,3]
[343310262,1732563036392,-564.06,0.00023912,3]
[343310263,1732563036401,-57764.49011681,0.00023922,2]
[343310268,1732563038155,-1614.43948055,0.00023922,2]
[343310298,1732563039972,-9493.6494,0.00023922,2]
[343310299,1732563040159,-13740.65239932,0.00023922,2]
[343310300,1732563040172,-2848.38,0.00023922,2]
[343310301,1732563040184,-2578.077999,0.00023922,2]
[343310302,1732563040198,-449.81898727,0.00023922,2]
[343310303,1732563040209,-468.35089848,0.00023922,2]
[343310304,1732563040222,-5146.42183192,0.00023922,2]
[343310305,1732563040244,-2345.06393578,0.00023922,2]
[343310306,1732563040340,-822.98308092,0.00023922,2]
[343310314,1732563043012,-3419.55831477,0.00023922,2]
[343310315,1732563043024,-3185.42234796,0.00023922,2]
[343310316,1732563043058,-5069.07482865,0.00023922,2]
[343310317,1732563043224,-7800.9352425,0.00023922,2]
[343310318,1732563043236,-5082.62433977,0.00023922,2]
[343310319,1732563043246,-999.31162039,0.0002411,2]
[343310320,1732563043255,-402.41064474,0.0002421,2]
[343310321,1732563043269,-246.80450694,0.0002442,2]
[343310322,1732563043289,-91.19502996,0.0002442,2]
[343310323,1732563043298,-9136.47056563,0.0002445,2]
[343310324,1732563043309,-1008.672975,0.0002445,2]
[343310329,1732563045848,-1233.1781679,0.0002445,2]
[343310330,1732563045889,-1163.2862863,0.0002445,2]
[343310331,1732563045900,-869.55614101,0.0002445,2]
[343310332,1732563046130,-948.29735,0.0002445,2]
[343310333,1732563046176,-2443.66989851,0.0002445,2]
[343310334,1732563046186,-999.31162038,0.00024753,2]
[343310335,1732563046196,-6072.91848111,0.00025,2]
[343310344,1732563241890,263.37,0.00028122,30]
[343310345,1732563242184,263.37,0.00030706,30]
[343310347,1732563315579,1000.0,0.00033,30]
[343310350,1732563617118,800.0,0.00027063,120]
[343310351,1732563617458,800.0,0.00030446,120]
[343310352,1732563717731,3210.29387505,0.0002,2]
[343310353,1732563967497,237.03,0.0002671,30]
[343310354,1732563967797,237.03,0.00029294,30]
[343310355,1732563968055,237.03,0.00031878,30]
[343310360,1732564216535,150.0,0.00033,30]
[343310375,1732564232092,-176.47,0.00020814,2]
[343310376,1732564232102,-4117.1750302,0.00023857,2]
[343310377,1732564232111,-2168.67,0.00023957,2]
[343310378,1732564232120,-4069.15449666,0.00024079,2]
[343310379,1732564232131,-48.02053352,0.00024079,2]
[343310380,1732564232141,-200.95214991,0.000244,2]
[343310381,1732564232149,-16.01583638,0.000245,2]
[343310382,1732564232160,-1313.98416362,0.000245,2]
[343310383,1732564232169,-300.0,0.00024749,2]
[343310384,1732564232178,-6318.2669775,0.0002475,2]
[343310385,1732564232187,-3000.0,0.0002475,2]
[343310386,1732564232196,-422.8460501,0.00024809,2]
[343310387,1732564232206,-10601.36397278,0.0002499,2]
[343310388,1732564232215,-11649.26945435,0.00025,2]
[343310389,1732564232224,-247.96528593,0.00025,2]
[343310390,1732564232234,-637.07536795,0.00025,2]
[343310391,1732564232247,-302.65932377,0.00025,7]
[343310392,1732564232308,-448.11356543,0.00025,7]
[343310393,1732564232317,-2793.98145734,0.00025375,2]
[343310394,1732564232329,-206.01854266,0.00025375,2]
[343310395,1732564232339,-250.0,0.00025821,2]
[343310396,1732564232348,-200.0,0.00025883,2]
[343310397,1732564232358,-8701.8123663,0.00025896,2]
[343310398,1732564232367,-6721.32411646,0.00025913,2]
[343310399,1732564232376,-24510.8647019,0.00025914,2]
[343310400,1732564232385,-250.0,0.0002593,2]
[343310401,1732564232395,-500.0,0.00025986,2]
[343310403,1732564232404,-500.0,0.00026037,2]
[343310405,1732564232413,-2168.67,0.00026221,2]
[343310407,1732564232422,-1000.0,0.00026491,2]
[343310409,1732564232432,-220.23,0.00026635,2]
[343310410,1732564232441,-257.55,0.00026713,2]
[343310411,1732564232450,-200.0,0.00026713,2]
[343310412,1732564232459,-200.0,0.00026713,2]
[343310413,1732564232469,-250.0,0.00026741,2]
[343310414,1732564232478,-772.91,0.00026749,2]
[343310415,1732564232488,-629.18,0.00026815,2]
[343310417,1732564232497,-420.0,0.00026818,2]
[343310419,1732564232507,-9056.7252492,0.00026819,2]
[343310421,1732564232519,-520.79904478,0.00026819,2]
[343310423,1732564232530,-4545.11624933,0.00026819,2]
[343310466,1732564238255,-4117.17503018,0.000243,2]
[343310467,1732564238264,-9777.35945669,0.00026819,2]
[343310468,1732564238273,-2254.52166203,0.00026849,2]
[343310469,1732564238285,-496.47833797,0.00026849,2]
[343310470,1732564238294,-5.52166203,0.00026899,2]
[343310471,1732564238305,-301.91055826,0.00026899,2]
[343310472,1732564238358,-1208.69777971,0.00026899,2]
[343310473,1732564238367,-1057.38840831,0.000269,2]
[343310474,1732564238377,-150.0,0.00026913,2]
[343310475,1732564238386,-3274.4,0.00026916,2]
[343310476,1732564238396,-150.0,0.00026951,2]
[343310477,1732564238406,-160.08,0.00026976,2]
[343310478,1732564238415,-376.02,0.0002699,3]
[343310479,1732564238425,-250.0,0.00027,2]
[343310480,1732564238434,-2848.01381198,0.00027,2]
[343310481,1732564238445,-1109.76612253,0.00027,2]
[343310492,1732564240357,-594.67504395,0.00027,2]
[343310493,1732564240368,-602.14410309,0.00027,2]
[343310494,1732564240379,-904.3,0.00027,2]
[343310499,1732564243272,-7167.63689616,0.00027,2]
[343310505,1732564243389,-14930.02889565,0.00027,2]
[343310506,1732564243399,-380.76511446,0.00027,2]
[343310507,1732564243409,-11500.01973752,0.00027,2]
[343310508,1732564243419,-150.0,0.00027,2]
[343310509,1732564243428,-489.24,0.00027002,2]
[343310510,1732564243439,-9697.19,0.00027076,2]
[343310511,1732564243448,-1057.38840827,0.00027233,2]
[343310512,1732564243456,-827.79,0.00027293,2]
[343310513,1732564243466,-14740.29,0.00027397,2]
[343310514,1732564243476,-13447.03842126,0.000275,2]
[343310515,1732564243485,-1057.38840827,0.00027567,2]
[343310516,1732564243494,-1278.84,0.00027743,2]
[343310517,1732564243504,-1057.38840827,0.000279,2]
[343310518,1732564243513,-45043.18,0.0002793,2]
[343310519,1732564243523,-500.0,0.0002793,2]
[343310520,1732564243534,-300.0,0.0002793,2]
[343310521,1732564243544,-471.42,0.0002793,2]
[343310522,1732564243554,-525.71,0.00027938,2]
[343310523,1732564243563,-4045.63,0.00027938,2]
[343310524,1732564243573,-521.4,0.00027942,2]
[343310526,1732564243582,-263.03,0.00028185,2]
[343310528,1732564243592,-382.02003657,0.000282,2]
[343310530,1732564243602,-1057.38840827,0.00028233,2]
[343310532,1732564243611,-1516.13,0.00028244,2]
[343310535,1732564243621,-2168.67,0.00028485,2]
[343310536,1732564243631,-1057.38840827,0.00028567,2]
[343310538,1732564243641,-1057.38840827,0.000289,2]
[343310541,1732564243651,-584.06627751,0.00028999,2]
[343310542,1732564243660,-500.0,0.00028999,2]
[343310544,1732564243669,-500.0,0.00028999,2]
[343310547,1732564243679,-179.74275112,0.00028999,2]
[343310549,1732564243688,-500.0,0.00028999,2]
[343310551,1732564243697,-388.29391433,0.00028999,2]
[343310552,1732564243707,-500.0,0.00028999,2]
[343310554,1732564243716,-188.1795,0.00029,2]
[343310556,1732564243725,-190.681,0.00029,2]
[343310558,1732564243734,-30000.0,0.00029,2]
[343310560,1732564243744,-7478.84186483,0.00029,2]
[343310563,1732564243755,-18345.7246863,0.00029,2]
[343310565,1732564243767,-4285.67788044,0.00029,2]
[343310571,1732564243812,-23368.32768366,0.00029,2]
[343310573,1732564243822,-166.42,0.00029046,2]
[343310575,1732564243831,-587.0,0.00029061,2]
[343310577,1732564243841,-1057.38840827,0.00029233,2]
[343310579,1732564243850,-223.2475,0.00029484,2]
[343310581,1732564243859,-263.03,0.00029555,2]
[343310583,1732564243868,-251.91,0.00029565,2]
[343310585,1732564243877,-1057.38840827,0.00029567,2]
[343310587,1732564243889,-1516.13,0.00029589,2]
[343310589,1732564243898,-160.08,0.00029673,2]
[343310591,1732564243907,-383.62330642,0.000298,2]
[343310593,1732564243916,-1000.0,0.00029802,2]
[343310595,1732564243925,-383.62330628,0.00029807,2]
[343310597,1732564243934,-383.62330628,0.00029814,2]
[343310599,1732564243943,-383.62330628,0.00029821,2]
[343310601,1732564243952,-383.62330628,0.00029829,2]
[343310603,1732564243961,-383.62330628,0.00029836,2]
[343310605,1732564243970,-383.62330628,0.00029843,2]
[343310607,1732564243979,-383.62330628,0.0002985,2]
[343310609,1732564243989,-383.62330628,0.00029857,2]
[343310611,1732564243998,-412.94038951,0.00029859,2]
[343310612,1732564244007,-383.62330628,0.00029864,2]
[343310614,1732564244016,-383.62330628,0.00029871,2]
[343310616,1732564244025,-263.7547665,0.00029879,2]
[343310686,1732564246166,-461.52,0.0002749,10]
[343310687,1732564246179,-152.01116327,0.000289,2]
[343310688,1732564246192,-119.86853978,0.00029879,2]
[343310689,1732564246204,-3000.0,0.00029879,2]
[343310690,1732564246216,-3000.0,0.00029879,2]
[343310691,1732564246228,-383.62330628,0.00029886,2]
[343310692,1732564246241,-383.62330628,0.00029893,2]
[343310693,1732564246252,-578.96909357,0.000299,3]
[343310694,1732564246264,-8500.0,0.000299,6]
[343310695,1732564246276,-497.11180215,0.000299,2]
[343310696,1732564246289,-8500.0,0.000299,6]
[343310697,1732564246301,-157.81766265,0.000299,2]
[343310698,1732564246313,-20742.38724722,0.000299,3]
[343310699,1732564246330,-8500.0,0.000299,6]
[343310700,1732564246342,-1057.38840827,0.000299,2]
[343310701,1732564246354,-1962.98493358,0.000299,2]
[343310702,1732564246365,-1359.73449527,0.000299,2]
[343310703,1732564246376,-383.62330628,0.000299,2]
[343310704,1732564246388,-1284.8734774,0.000299,2]
[343310705,1732564246399,-500.0,0.00029973,5]
[343310706,1732564246411,-500.21366048,0.00029973,5]
[343310707,1732564246422,-163.49637636,0.00029973,5]
[343310708,1732564246434,-159.26082865,0.00029973,2]
[343310709,1732564246445,-159.26242659,0.00029973,2]
[343310710,1732564246457,-159.28680269,0.00029973,2]
[343310711,1732564246467,-159.2636501,0.00029973,2]
[343310712,1732564246479,-500.0,0.00029973,2]
[343310713,1732564246490,-629.0,0.00029973,2]
[343310714,1732564246501,-293.10182859,0.00029999,2]
[343310715,1732564246513,-421.95029097,0.00029999,2]
[343310716,1732564246523,-566.94,0.00029999,2]
[343310717,1732564246536,-500.0,0.00029999,2]
[343310718,1732564246547,-29416.18597257,0.0003,5]
[343310721,1732564246561,-1372.53185411,0.0003,5]
[343310723,1732564246579,-869.88096327,0.0003,5]
[343310724,1732564246593,-1009.10030352,0.0003,5]
[343310725,1732564246606,-1009.73999119,0.0003,5]
[343310726,1732564246619,-792.82639925,0.0003,5]
[343310728,1732564329180,212.31,0.00031427,120]
[343310729,1732564449844,500.0,0.00033,30]
[343310730,1732564464010,500.0,0.00033,30]
[343310732,1732564526487,1000.0,0.00033,30]
[343310733,1732564596844,500.0,0.00033,30]
[343310734,1732564597257,296.68481619,0.00033,30]
[343310736,1732565055222,201.47,0.00029058,30]
[343310737,1732565055688,201.47,0.00031642,30]
[343310743,1732565432242,-168.98,0.00023281,2]
[343310745,1732565432252,-1197.0,0.000245,2]
[343310746,1732565432262,-1798.38759215,0.00027013,2]
[343310747,1732565432348,-213.81240785,0.00027013,2]
[343310748,1732565432358,-150.0,0.00027912,2]
[343310749,1732565432367,-250.0,0.000281,2]
[343310750,1732565432376,-500.0,0.00028134,2]
[343310751,1732565432384,-337.74,0.00028534,2]
[343310752,1732565432393,-337.74,0.00028542,2]
[343310753,1732565432403,-165.69103826,0.00028549,2]
[343310754,1732565432414,-172.04896174,0.00028549,2]
[343310755,1732565432423,-337.74,0.00028557,2]
[343310756,1732565432432,-41.20811527,0.00028561,2]
[343310757,1732565432470,-108.79188473,0.00028561,2]
[343310758,1732565432480,-337.74,0.00028564,2]
[343310759,1732565432489,-337.74,0.00028572,2]
[343310760,1732565432498,-337.74,0.0002858,2]
[343310761,1732565432508,-337.74,0.00028587,2]
[343310762,1732565432517,-337.74,0.00028595,2]
[343310763,1732565432526,-337.74,0.00028602,2]
[343310764,1732565432535,-337.74,0.0002861,2]
[343310765,1732565432543,-337.74,0.00028617,2]
[343310766,1732565432552,-337.74,0.00028625,2]
[343310767,1732565432561,-337.74,0.00028632,2]
[343310768,1732565432572,-337.74,0.0002864,2]
[343310769,1732565432583,-337.74,0.00028647,2]
[343310770,1732565432592,-584.06911527,0.00028655,2]
[343310771,1732565432603,-64.67088473,0.00028655,2]
[343310772,1732565432614,-337.74,0.00028655,2]
[343310773,1732565432623,-337.74,0.00028662,2]
[343310774,1732565432632,-337.74,0.0002867,2]
[343310775,1732565432641,-337.74,0.00028677,2]
[343310776,1732565432651,-767.12438386,0.00028802,2]
[343310777,1732565432662,-546.21011004,0.00028802,2]
[343310778,1732565432672,-323.8655061,0.00028802,2]
[343310779,1732565432682,-161.31,0.00028839,2]
[343310780,1732565432693,-160.08,0.00028839,2]
[343310781,1732565432941,-682.59306967,0.00028845,2]
[343310794,1732565438303,-2385.47819203,0.00028845,2]
[343310795,1732565438314,-1592.42457867,0.00028845,2]
[343310796,1732565438325,-323.79921957,0.00028845,2]
[343310802,1732565440303,-17812.32175517,0.00028845,2]
[343310803,1732565440315,-1103.38318489,0.00028845,2]